fUST/lending_fUST_20250802
["ID","MTS","AMOUNT","RATE_DAILY","PERIOD"]
[376640480,1754067033735,-460.0,0.00021917,10]
[376640481,1754067033744,-973.98,0.00021917,10]
[376640483,1754067033754,-578.05,0.00021917,10]
[376640485,1754067033763,-460.0,0.00021917,10]
[376640486,1754067033773,-460.0,0.00021917,10]
[376640488,1754067033783,-460.0,0.00021917,10]
[376640490,1754067033793,-460.0,0.00021917,10]
[376640492,1754067033802,-460.0,0.00021917,10]
[376640494,1754067033812,-460.0,0.00021917,10]
[376640496,1754067033821,-460.0,0.00021917,10]
[376640498,1754067033830,-460.0,0.00021917,10]
[376640500,1754067033840,-460.0,0.00021917,10]
[376640502,1754067033850,-151.0,0.00021917,2]
[376640504,1754067033859,-151.0,0.00021917,2]
[376640506,1754067033868,-460.0,0.00021917,10]
[376640508,1754067033878,-151.0,0.00021917,2]
[376640510,1754067033887,-215.94966365,0.00021917,10]
[376640512,1754067033896,-460.0,0.00021917,10]
[376640514,1754067033906,-733.6,0.00021917,10]
[376640516,1754067033917,-460.0,0.00021917,10]
[376640518,1754067033926,-151.0,0.00021917,2]
[376640520,1754067033936,-151.0,0.00021917,2]
[376640522,1754067033945,-151.0,0.00021917,2]
[376640523,1754067033954,-576.79,0.00021917,10]
[376640524,1754067033969,-460.0,0.00021917,10]
[376640525,1754067033978,-460.0,0.00021917,10]
[376640526,1754067033987,-2561.83,0.00021917,10]
[376640527,1754067033997,-460.0,0.00021917,10]
[376640528,1754067034007,-500.0,0.00021917,10]
[376640529,1754067034018,-151.713914,0.00021917,2]
[376640530,1754067034030,-1195.47,0.00021917,10]
[376640531,1754067034039,-460.0,0.00021917,10]
[376640532,1754067034049,-460.0,0.00021917,10]
[376640533,1754067034059,-479.6064593,0.00021917,10]
[376640534,1754067034068,-1140.22,0.00021917,10]
[376640535,1754067034078,-2123.02,0.00021917,10]
[376640536,1754067034087,-460.0,0.00021917,10]
[376640537,1754067034096,-460.0,0.00021917,10]
[376640538,1754067034106,-460.0,0.00021917,10]
[376640539,1754067034115,-460.0,0.00021917,10]
[376640540,1754067034125,-460.0,0.00021917,10]
[376640541,1754067034134,-460.0,0.00021917,10]
[376640542,1754067034143,-460.0,0.00021917,10]
[376640543,1754067034153,-483.37,0.00021917,10]
[376640544,1754067034162,-460.0,0.00021917,10]
[376640545,1754067034171,-460.0,0.00021917,10]
[376640546,1754067034181,-460.0,0.00021917,10]
[376640547,1754067034190,-460.0,0.00021917,10]
[376640548,1754067034200,-460.0,0.00021917,10]
[376640549,1754067034210,-378.79318451,0.00021917,10]
[376640550,1754067034219,-8119.92,0.00021917,10]
[376640551,1754067034229,-460.0,0.00021917,10]
[376640552,1754067034238,-460.0,0.00021917,10]
[376640553,1754067034248,-507.0,0.00021917,10]
[376640554,1754067034258,-619.19,0.00021917,10]
[376640555,1754067034268,-460.0,0.00021917,10]
[376640556,1754067034278,-460.0,0.00021917,10]
[376640557,1754067034287,-460.0,0.00021917,10]
[376640558,1754067034296,-1942.95,0.00021917,10]
[376640559,1754067034306,-835.53,0.00021917,10]
[376640560,1754067034315,-460.0,0.00021917,10]
[376640561,1754067034325,-151.0,0.00021917,10]
[376640562,1754067034334,-151.0,0.00021917,10]
[376640563,1754067034343,-460.0,0.00021917,10]
[376640564,1754067034352,-460.0,0.00021917,10]
[376640565,1754067034361,-460.0,0.00021917,10]
[376640566,1754067034371,-460.0,0.00021917,10]
[376640567,1754067034380,-151.0,0.00021917,10]
[376640568,1754067034389,-344.79965174,0.00021917,10]
[376640569,1754067034407,-211.55034826,0.00021917,10]
[376640570,1754067034417,-460.0,0.00021917,10]
[376640571,1754067034426,-390.75624519,0.00021917,10]
[376640572,1754067034436,-245.28770264,0.00021917,2]
[376640573,1754067034445,-151.0,0.00021917,10]
[376640574,1754067034455,-462.34368805,0.00021917,10]
[376640575,1754067034465,-151.0,0.00021917,10]
[376640576,1754067034475,-460.0,0.00021917,10]
[376640577,1754067034485,-151.0,0.00021917,10]
[376640578,1754067034495,-460.0,0.00021917,10]
[376640579,1754067034505,-143.09697379,0.00021917,10]
[376640580,1754067034522,-362.97302621,0.00021917,10]
[376640581,1754067034532,-460.0,0.00021917,10]
[376640582,1754067034542,-460.0,0.00021917,10]
[376640583,1754067034551,-460.0,0.00021917,10]
[376640584,1754067034561,-57.25463428,0.00021917,10]
[376640585,1754067034572,-395.18423946,0.00021917,10]
[376640586,1754067034596,-710.17380002,0.00021917,10]
[376640602,1754067038053,-831.72,0.00021907,10]
[376640603,1754067038064,-489.89732624,0.00021917,10]
[376640604,1754067038074,-460.0,0.00021917,10]
[376640605,1754067038083,-148.06775874,0.00021917,10]
[376640606,1754067038096,-311.93224126,0.00021917,10]
[376640607,1754067038105,-571.87,0.00021917,10]
[376640608,1754067038115,-2826.76,0.00021917,10]
[376640609,1754067038124,-1226.34,0.00021917,10]
[376640610,1754067038134,-324.20578503,0.00021917,10]
[376640623,1754067040064,-220.95421497,0.00021917,10]
[376640624,1754067040074,-745.44,0.00021917,10]
[376640625,1754067040083,-462.24743105,0.00021917,10]
[376640626,1754067040093,-486.66,0.00021917,10]
[376640627,1754067040102,-463.20317747,0.00021917,10]
[376640628,1754067040112,-460.0,0.00021917,10]
[376640629,1754067040121,-460.0,0.00021917,10]
[376640630,1754067040132,-460.0,0.00021917,10]
[376640631,1754067040142,-460.0,0.00021917,10]
[376640632,1754067040151,-3660.33,0.00021917,10]
[376640633,1754067040161,-460.0,0.00021917,10]
[376640634,1754067040170,-773.78,0.00021917,10]
[376640635,1754067040180,-460.0,0.00021917,10]
[376640636,1754067040191,-460.0,0.00021917,10]
[376640637,1754067040202,-460.0,0.00021917,10]
[376640638,1754067040212,-460.0,0.00021917,10]
[376640639,1754067040222,-488.29669893,0.00021917,10]
[376640641,1754067040231,-460.0,0.00021917,10]
[376640643,1754067040240,-328.56106037,0.00021917,10]
[376640645,1754067040249,-460.0,0.00021917,10]
[376640646,1754067040260,-1466.26,0.00021917,10]
[376640647,1754067040270,-460.0,0.00021917,10]
[376640648,1754067040279,-460.0,0.00021917,10]
[376640649,1754067040288,-550.64,0.00021917,10]
[376640650,1754067040298,-151.0,0.00021917,2]
[376640651,1754067040307,-151.0,0.00021917,2]
[376640652,1754067040316,-460.0,0.00021917,10]
[376640653,1754067040327,-7937.86,0.00021917,10]
[376640654,1754067040336,-460.0,0.00021917,10]
[376640655,1754067040345,-460.0,0.00021917,10]
[376640656,1754067040355,-1220.36,0.00021917,10]
[376640657,1754067040365,-151.0,0.00021917,10]
[376640658,1754067040374,-460.0,0.00021917,10]
[376640659,1754067040383,-461.77275098,0.00021917,10]
[376640660,1754067040392,-460.0,0.00021917,10]
[376640661,1754067040402,-464.89380412,0.00021917,10]
[376640662,1754067040411,-500.0,0.00021917,10]
[376640663,1754067040420,-312.16666667,0.00021917,10]
[376640664,1754067040429,-476.77,0.00021917,10]
[376640665,1754067040439,-557.32636232,0.00021917,10]
[376640666,1754067040449,-1671.77,0.00021917,10]
[376640667,1754067040458,-462.74924937,0.00021917,10]
[376640668,1754067040467,-460.0,0.00021917,10]
[376640669,1754067040477,-460.0,0.00021917,10]
[376640670,1754067040487,-1306.57,0.00021917,10]
[376640671,1754067040496,-461.52856998,0.00021917,10]
[376640672,1754067040506,-154.18091276,0.00021917,10]
[376640673,1754067040516,-460.0,0.00021917,10]
[376640674,1754067040525,-5972.22,0.00021917,10]
[376640675,1754067040536,-1240.56,0.00021917,10]
[376640676,1754067040547,-1240.56,0.00021917,10]
[376640677,1754067040556,-1240.56,0.00021917,10]
[376640678,1754067040566,-1240.56,0.00021917,10]
[376640679,1754067040576,-1240.56,0.00021917,10]
[376640680,1754067040586,-1240.56,0.00021917,10]
[376640681,1754067040597,-460.0,0.00021917,10]
[376640682,1754067040606,-1240.56,0.00021917,10]
[376640683,1754067040615,-1240.56,0.00021917,10]
[376640684,1754067040624,-1240.56,0.00021917,10]
[376640685,1754067040635,-460.0,0.00021917,10]
[376640686,1754067040655,-970.31,0.00021917,10]
[376640687,1754067040673,-1240.56,0.00021917,10]
[376640688,1754067040682,-1240.56,0.00021917,10]
[376640689,1754067040691,-1240.56,0.00021917,10]
[376640690,1754067040700,-2526.18,0.00021917,10]
[376640691,1754067040710,-460.0,0.00021917,10]
[376640692,1754067040719,-1240.56,0.00021917,10]
[376640693,1754067040728,-1240.56,0.00021917,10]
[376640694,1754067040737,-1240.56,0.00021917,10]
[376640695,1754067040746,-1240.56,0.00021917,10]
[376640696,1754067040755,-460.0,0.00021917,10]
[376640697,1754067040764,-1240.56,0.00021917,10]
[376640698,1754067040774,-460.0,0.00021917,10]
[376640699,1754067040783,-1240.56,0.00021917,10]
[376640700,1754067040795,-460.0,0.00021917,10]
[376640701,1754067040804,-1240.56,0.00021917,10]
[376640702,1754067040813,-806.38,0.00021917,10]
[376640703,1754067040823,-1271.04,0.00021917,10]
[376640704,1754067040832,-701.21,0.00021917,10]
[376640705,1754067040843,-460.0,0.00021917,7]
[376640706,1754067040852,-460.0,0.00021917,10]
[376640707,1754067040862,-460.0,0.00021917,10]
[376640708,1754067040871,-465.92768651,0.00021917,10]
[376640709,1754067040880,-460.0,0.00021917,10]
[376640710,1754067040890,-460.0,0.00021917,10]
[376640711,1754067040899,-605.7,0.00021917,10]
[376640712,1754067040908,-460.0,0.00021917,10]
[376640713,1754067040918,-491.19,0.00021917,10]
[376640714,1754067040928,-460.0,0.00021917,10]
[376640715,1754067040937,-1002.87,0.00021917,10]
[376640716,1754067040947,-460.0,0.00021917,10]
[376640717,1754067040956,-500.0,0.00021917,10]
[376640718,1754067040968,-151.0,0.00021917,10]
[376640719,1754067040977,-151.0,0.00021917,2]
[376640720,1754067040986,-663.39,0.00021917,10]
[376640721,1754067040996,-949.14,0.00021917,10]
[376640722,1754067041005,-151.0,0.00021917,10]
[376640723,1754067041015,-635.74,0.00021917,10]
[376640724,1754067041025,-593.82,0.00021917,10]
[376640725,1754067041034,-151.0,0.00021917,10]
[376640726,1754067041044,-151.0,0.00021917,2]
[376640727,1754067041053,-500.0,0.00021917,10]
[376640728,1754067041062,-460.0,0.00021917,10]
[376640729,1754067041072,-4179.5,0.00021917,10]
[376640730,1754067041082,-460.0,0.00021917,10]
[376640731,1754067041091,-460.0,0.00021917,10]
[376640732,1754067041100,-1089.91,0.00021917,10]
[376640733,1754067041109,-474.87,0.00021917,10]
[376640734,1754067041118,-558.50960345,0.00021917,10]
[376640735,1754067041127,-4712.81,0.00021917,10]
[376640736,1754067041136,-578.3388043,0.00021917,10]
[376640737,1754067041145,-1140.32,0.00021917,10]
[376640738,1754067041154,-287.77097542,0.00021917,10]
[376640739,1754067041168,-172.22902458,0.00021917,10]
[376640740,1754067041177,-199.97636747,0.00021917,10]
[376640741,1754067041187,-147.71110755,0.00021917,10]
[376640742,1754067041208,-352.28889245,0.00021917,10]
[376640743,1754067041217,-460.0,0.00021917,10]
[376640744,1754067041226,-460.0,0.00021917,10]
[376640745,1754067041235,-414.95458955,0.00021917,10]
[376640746,1754067041249,-45.04541045,0.00021917,10]
[376640747,1754067041258,-460.0,0.00021917,10]
[376640748,1754067041267,-460.0,0.00021917,10]
[376640749,1754067041277,-494.27,0.00021917,10]
[376640750,1754067041286,-460.0,0.00021917,10]
[376640751,1754067041295,-496.16124165,0.00021917,10]
[376640752,1754067041304,-460.0,0.00021917,10]
[376640753,1754067041313,-460.0,0.00021917,10]
[376640754,1754067041322,-460.96470522,0.00021917,10]
[376640755,1754067041331,-460.0,0.00021917,10]
[376640756,1754067041340,-460.0,0.00021917,10]
[376640757,1754067041349,-460.0,0.00021917,10]
[376640758,1754067041358,-460.0,0.00021917,10]
[376640759,1754067041367,-3743.27,0.00021917,10]
[376640760,1754067041376,-460.0,0.00021917,10]
[376640761,1754067041386,-460.0,0.00021917,10]
[376640762,1754067041395,-460.0,0.00021917,10]
[376640763,1754067041404,-460.0,0.00021917,10]
[376640764,1754067041413,-1224.55,0.00021917,10]
[376640765,1754067041422,-460.0,0.00021917,10]
[376640766,1754067041431,-460.0,0.00021917,10]
[376640767,1754067041440,-1066.97,0.00021917,10]
[376640768,1754067041449,-460.0,0.00021917,10]
[376640769,1754067041458,-460.0,0.00021917,10]
[376640770,1754067041467,-460.0,0.00021917,10]
[376640771,1754067041476,-460.0,0.00021917,10]
[376640772,1754067041486,-460.0,0.00021917,10]
[376640773,1754067041495,-460.0,0.00021917,10]
[376640774,1754067041504,-460.0,0.00021917,10]
[376640775,1754067041513,-2523.93,0.00021917,10]
[376640776,1754067041524,-461.28143089,0.00021917,10]
[376640777,1754067041533,-460.0,0.00021917,10]
[376640778,1754067041543,-463.38483838,0.00021917,10]
[376640779,1754067041552,-634.01,0.00021917,10]
[376640780,1754067041561,-460.0,0.00021917,10]
[376640781,1754067041569,-460.0,0.00021917,10]
[376640782,1754067041575,-151.0,0.00021917,2]
[376640783,1754067041582,-151.0,0.00021917,2]
[376640784,1754067041589,-231.965022,0.00021917,2]
[376640785,1754067041598,-460.0,0.00021917,10]
[376640786,1754067041605,-460.0,0.00021917,10]
[376640787,1754067041612,-460.0,0.00021917,10]
[376640788,1754067041620,-460.0,0.00021917,10]
[376640789,1754067041627,-460.0,0.00021917,10]
[376640790,1754067041633,-460.0,0.00021917,10]
[376640791,1754067041639,-269.58790308,0.00021917,10]
[376640792,1754067041648,-1577.87,0.00021917,10]
[376640793,1754067041658,-924.22,0.00021917,10]
[376640794,1754067041667,-460.0,0.00021917,10]
[376640795,1754067041677,-1004.24,0.00021917,10]
[376640796,1754067041689,-564.05,0.00021917,10]
[376640797,1754067041700,-608.08,0.00021917,10]
[376640798,1754067041711,-572.92,0.00021917,10]
[376640799,1754067041722,-460.0,0.00021917,10]
[376640800,1754067041732,-1072.12,0.00021917,10]
[376640801,1754067041741,-460.0,0.00021917,10]
[376640802,1754067041750,-460.0,0.00021917,10]
[376640803,1754067041760,-460.0,0.00021917,10]
[376640804,1754067041770,-460.0,0.00021917,10]
[376640805,1754067041780,-460.0,0.00021917,10]
[376640806,1754067041790,-1164.83,0.00021917,10]
[376640807,1754067041800,-2455.09,0.00021917,10]
[376640808,1754067041809,-821.42,0.00021917,10]
[376640809,1754067041820,-460.0,0.00021917,10]
[376640810,1754067041830,-460.0,0.00021917,10]
[376640811,1754067041838,-460.0,0.00021917,10]
[376640812,1754067041847,-460.0,0.00021917,10]
[376640813,1754067041856,-162.130946,0.00021918,2]
[376640814,1754067041864,-500.0,0.00021973,2]
[376640815,1754067041873,-500.0,0.00021973,2]
[376640816,1754067041882,-500.0,0.00021973,2]
[376640817,1754067041891,-500.0,0.00021973,2]
[376640818,1754067041906,-192.89,0.00022,2]
[376640819,1754067041919,-224.47630514,0.00022091,2]
[376640820,1754067041927,-205.92020686,0.00022122,6]
[376640821,1754067041936,-158.752682,0.00022152,6]
[376640822,1754067041946,-1240.56,0.00022172,10]
[376640823,1754067041955,-1240.56,0.00022172,10]
[376640824,1754067041966,-1240.56,0.00022172,10]
[376640825,1754067041976,-115.90949085,0.00022172,10]
[376640827,1754067042916,-151.0,0.00021917,10]
[376640828,1754067042925,-151.0,0.00021917,2]
[376640829,1754067042935,-454.9,0.00022172,10]
[376640830,1754067042947,-669.75050915,0.00022172,10]
[376640831,1754067042956,-59.75949085,0.00022172,10]
[376640832,1754067042973,-1180.9470813,0.00022172,10]
[376640833,1754067042986,-500.0,0.00022173,2]
[376640834,1754067042996,-134.6815787,0.00022173,2]
[376640835,1754067043008,-368.85380804,0.00022173,2]
[376640836,1754067043019,-500.0,0.00022173,2]
[376640837,1754067043028,-1.14619196,0.00022173,2]
[376640838,1754067043039,-568.82561988,0.00022173,2]
[376640839,1754067043048,-500.0,0.00022173,2]
[376640840,1754067043057,-492.46994751,0.00022173,2]
[376640851,1754067045923,-460.0,0.00021917,10]
[376640852,1754067045932,-9.23719247,0.00022173,2]
[376640854,1754067045942,-263.91720753,0.00022173,2]
[376640855,1754067045953,-236.08279247,0.00022173,2]
[376640856,1754067045965,-501.13003715,0.00022173,2]
[376640857,1754067045976,-500.0,0.00022173,2]
[376640858,1754067045986,-500.0,0.00022173,2]
[376640859,1754067045995,-85.04191538,0.00022173,2]
[376640860,1754067046007,-420.04327577,0.00022173,2]
[376640861,1754067046016,-338.70672423,0.00022173,2]
[376640862,1754067046029,-161.29327577,0.00022173,2]
[376640863,1754067046040,-500.0,0.00022173,2]
[376640864,1754067046050,-500.0,0.00022173,2]
[376640865,1754067046059,-500.0,0.00022173,2]
[376640866,1754067046069,-500.0,0.00022173,2]
[376640867,1754067046079,-301.70961496,0.00022173,2]
[376640868,1754067046088,-500.0,0.00022173,2]
[376640870,1754067046098,-151.0,0.00022173,7]
[376640871,1754067046107,-151.0,0.00022173,7]
[376640872,1754067046116,-270.57812149,0.00022173,2]
[376640873,1754067046125,-151.0,0.00022173,7]
[376640874,1754067046134,-151.0,0.00022173,7]
[376640875,1754067046143,-151.0,0.00022187,2]
[376640876,1754067046153,-151.0,0.00022187,2]
[376640877,1754067046162,-151.0,0.00022187,2]
[376640878,1754067046171,-151.0,0.00022187,2]
[376640879,1754067046180,-151.0,0.00022187,2]
[376640880,1754067046189,-151.0,0.00022187,2]
[376640881,1754067046198,-151.0,0.00022187,2]
[376640882,1754067046208,-151.0,0.00022187,2]
[376640883,1754067046217,-151.0,0.00022187,2]
[376640884,1754067046226,-151.0,0.00022187,2]
[376640885,1754067046236,-151.0,0.00022187,2]
[376640886,1754067046246,-151.0,0.00022187,2]
[376640887,1754067046255,-151.0,0.00022187,2]
[376640888,1754067046265,-151.0,0.00022187,2]
[376640889,1754067046275,-151.0,0.00022187,2]
[376640890,1754067046285,-151.0,0.00022187,2]
[376640891,1754067046295,-151.0,0.00022187,2]
[376640892,1754067046304,-151.0,0.00022187,2]
[376640893,1754067046313,-235.21408771,0.00022187,2]
[376640894,1754067046329,-30.87469506,0.00022187,2]
[376640895,1754067046339,-175.99394059,0.00022187,2]
[376640896,1754067046349,-151.0,0.0002219,7]
[376640897,1754067046358,-151.0,0.0002219,7]
[376640898,1754067046368,-151.0,0.0002219,7]
[376640899,1754067046378,-151.0,0.0002219,7]
[376640900,1754067046387,-151.0,0.0002219,7]
[376640901,1754067046397,-500.0,0.0002219,2]
[376640902,1754067046407,-213.66580714,0.0002219,2]
[376640903,1754067046416,-162.61240298,0.0002219,7]
[376640904,1754067046433,-56.53277802,0.0002219,7]
[376640905,1754067046442,-219.145181,0.0002219,7]
[376640906,1754067046452,-146.25022551,0.0002219,7]
[376640907,1754067046465,-258.67234176,0.0002219,7]
[376640964,1754068232219,-160.0,0.0002,3]
[376640967,1754068232230,-181.539139,0.00020913,2]
[376640969,1754068232239,-38.86797636,0.00021817,2]
[376641242,1754068238143,-365.34387853,0.00021817,2]
[376641243,1754068238153,-158.752682,0.00021857,6]
[376641244,1754068238163,-154.57427532,0.000219,6]
[376641245,1754068238175,-51.89427892,0.000219,6]
[376641246,1754068238185,-234.74,0.00021907,3]
[376641247,1754068238195,-583.36765238,0.00021907,3]
[376641248,1754068238207,-120.85234762,0.00021907,3]
[376641249,1754068238217,-1200.0,0.00021912,2]
[376641250,1754068238228,-300.0,0.00021912,2]
[376641251,1754068238238,-152.0,0.00021912,2]
[376641252,1754068238248,-300.0,0.00021912,2]
[376641253,1754068238259,-300.0,0.00021912,2]
[376641254,1754068238268,-902.0,0.00021912,2]
[376641255,1754068238278,-300.0,0.00021912,2]
[376641256,1754068238288,-32800.8627545,0.00021913,2]
[376641257,1754068238297,-500.0,0.00021916,2]
[376641258,1754068238307,-500.0,0.00021916,2]
[376641259,1754068238317,-500.0,0.00021916,2]
[376641260,1754068238329,-500.0,0.00021916,2]
[376641261,1754068238339,-500.0,0.00021916,2]
[376641262,1754068238349,-502.65015297,0.00021916,2]
[376641263,1754068238359,-500.0,0.00021916,2]
[376641264,1754068238368,-500.0,0.00021916,2]
[376641265,1754068238378,-500.0,0.00021916,2]
[376641266,1754068238387,-500.0,0.00021916,2]
[376641267,1754068238398,-500.0,0.00021916,2]
[376641268,1754068238407,-500.0,0.00021916,2]
[376641269,1754068238417,-500.0,0.00021916,2]
[376641270,1754068238426,-500.0,0.00021916,2]
[376641271,1754068238436,-500.0,0.00021916,2]
[376641272,1754068238446,-500.0,0.00021916,2]
[376641273,1754068238456,-500.0,0.00021916,2]
[376641274,1754068238465,-500.0,0.00021916,2]
[376641275,1754068238476,-500.0,0.00021916,2]
[376641276,1754068238486,-500.0,0.00021916,2]
[376641277,1754068238495,-500.0,0.00021916,2]
[376641278,1754068238505,-500.0,0.00021916,2]
[376641279,1754068238515,-214.9,0.00021916,2]
[376641280,1754068238524,-479.07783885,0.00021916,2]
[376641281,1754068238534,-433.47230826,0.00021916,2]
[376641282,1754068238543,-499.566065,0.00021916,2]
[376641283,1754068238552,-542.52097593,0.00021917,2]
[376641284,1754068238562,-500.0,0.00021917,2]
[376641285,1754068238572,-151.0,0.00021917,2]
[376641286,1754068238582,-151.0,0.00021917,2]
[376641287,1754068238591,-151.0,0.00021917,2]
[376641288,1754068238601,-151.0,0.00021917,2]
[376641289,1754068238610,-151.0,0.00021917,2]
[376641290,1754068238620,-151.0,0.00021917,2]
[376641291,1754068238630,-151.0,0.00021917,2]
[376641292,1754068238640,-166.180306,0.00021917,2]
[376641293,1754068238650,-293.67241318,0.00021917,10]
[376641294,1754068238662,-461.26519652,0.00021917,10]
[376641295,1754068238672,-460.0,0.00021917,10]
[376641296,1754068238681,-489.45452389,0.00021917,10]
[376641297,1754068238691,-460.0,0.00021917,10]
[376641298,1754068238700,-460.0,0.00021917,10]
[376641299,1754068238709,-285.93406519,0.00021917,10]
[376641300,1754068238718,-506.64214284,0.00021917,10]
[376641301,1754068238728,-460.0,0.00021917,10]
[376641302,1754068238737,-460.0,0.00021917,10]
[376641303,1754068238750,-460.0,0.00021917,10]
[376641304,1754068238760,-460.0,0.00021917,10]
[376641305,1754068238769,-460.0,0.00021917,10]
[376641306,1754068238779,-460.0,0.00021917,10]
[376641307,1754068238788,-460.7284847,0.00021917,10]
[376641308,1754068238798,-461.09084379,0.00021917,10]
[376641309,1754068238807,-460.0,0.00021917,10]
[376641310,1754068238817,-460.0,0.00021917,10]
[376641311,1754068238827,-460.0,0.00021917,10]
[376641312,1754068238837,-460.0,0.00021917,10]
[376641313,1754068238847,-404.20598547,0.00021917,10]
[376641314,1754068238856,-460.0,0.00021917,10]
[376641315,1754068238866,-460.0,0.00021917,10]
[376641316,1754068238876,-462.35983748,0.00021917,10]
[376641317,1754068238886,-455.14019,0.00021917,10]
[376641318,1754068238896,-461.77073188,0.00021917,10]
[376641319,1754068238907,-460.0,0.00021917,10]
[376641320,1754068238917,-460.0,0.00021917,10]
[376641321,1754068238927,-460.0,0.00021917,10]
[376641322,1754068238937,-460.0,0.00021917,10]
[376641323,1754068238946,-462.68828021,0.00021917,10]
[376641324,1754068238956,-500.0,0.00021917,10]
[376641325,1754068238965,-460.0,0.00021917,10]
[376641326,1754068238976,-460.0,0.00021917,10]
[376641327,1754068238985,-383.08557174,0.00021917,10]
[376641328,1754068238995,-460.0,0.00021917,10]
[376641329,1754068239004,-461.18412538,0.00021917,10]
[376641330,1754068239014,-460.0,0.00021917,10]
[376641331,1754068239024,-460.0,0.00021917,10]
[376641332,1754068239034,-64.53060247,0.00021917,10]
[376641333,1754068239051,-395.46939753,0.00021917,10]
[376641334,1754068239061,-460.0,0.00021917,10]
[376641335,1754068239071,-460.0,0.00021917,10]
[376641336,1754068239080,-574.09510972,0.00021917,10]
[376641337,1754068239090,-460.0,0.00021917,10]
[376641338,1754068239099,-151.0,0.00021917,2]
[376641339,1754068239108,-460.0,0.00021917,10]
[376641340,1754068239118,-460.0,0.00021917,10]
[376641341,1754068239127,-460.0,0.00021917,10]
[376641342,1754068239137,-460.0,0.00021917,10]
[376641343,1754068239146,-460.0,0.00021917,10]
[376641344,1754068239156,-460.0,0.00021917,10]
[376641345,1754068239166,-462.26198084,0.00021917,10]
[376641346,1754068239175,-461.62183362,0.00021917,10]
[376641347,1754068239184,-466.99937723,0.00021917,10]
[376641348,1754068239194,-460.0,0.00021917,10]
[376641349,1754068239203,-460.0,0.00021917,10]
[376641350,1754068239213,-460.0,0.00021917,10]
[376641351,1754068239223,-460.0,0.00021917,10]
[376641352,1754068239233,-460.0,0.00021917,10]
[376641353,1754068239242,-460.0,0.00021917,10]
[376641354,1754068239252,-460.0,0.00021917,10]
[376641355,1754068239261,-460.0,0.00021917,10]
[376641356,1754068239270,-460.0,0.00021917,10]
[376641357,1754068239279,-460.0,0.00021917,10]
[376641358,1754068239289,-460.0,0.00021917,10]
[376641359,1754068239299,-460.0,0.00021917,10]
[376641360,1754068239308,-460.0,0.00021917,10]
[376641361,1754068239318,-460.0,0.00021917,10]
[376641362,1754068239329,-460.0,0.00021917,10]
[376641363,1754068239338,-460.0,0.00021917,10]
[376641364,1754068239348,-460.0,0.00021917,10]
[376641365,1754068239358,-460.0,0.00021917,10]
[376641366,1754068239368,-460.0,0.00021917,10]
[376641367,1754068239377,-87.75802454,0.00021917,10]
[376641368,1754068239391,-524.60197546,0.00021917,10]
[376641369,1754068239401,-460.0,0.00021917,10]
[376641370,1754068239412,-460.0,0.00021917,10]
[376641371,1754068239421,-526.70689679,0.00021917,10]
[376641372,1754068239431,-460.0,0.00021917,10]
[376641373,1754068239440,-460.0,0.00021917,10]